[Event "XLV Badalona Open 2019"]
[Site "Badalona"]
[Date "2019.08.06"]
[Round "5.4"]
[White "Becerra, Juan David"]
[Black "Umetsubo, Cesar Hidemitsu"]
[Result "0-1"]
[ECO "C49"]
[WhiteElo "2327"]
[BlackElo "2406"]
[Annotator "NA"]
[PlyCount "86"]
[EventDate "2019.08.02"]
[EventType "swiss"]
[EventCountry "ESP"]
[SourceTitle "playchess.com"]
[Source "ChessBase"]
[SourceQuality "1"]
[TimeControl "5400+30"]

1. e4 {[%emt 0:06:44]} e5 {[%emt 0:00:00]} 2. Nf3 {[%emt 0:01:20]} Nf6 {[%emt 0:00:00]} 3. Nc3 {[%emt 0:01:25]} Nc6 {[%emt 0:00:18]} 4. Bb5 {[%emt 0:00:21]} Bb4 {[%emt 0:00:30]} 5. O-O {[%emt 0:00:27]} O-O {[%emt 0:00:01]} 6. d3 {[%emt 0:01:31]} d6 {[%emt 0:00:31]} 7. Bg5 {[%emt 0:00:07]} Bxc3 {[%emt 0:00:30]} 8. bxc3 {[%emt 0:00:30]} Qe7 {[%emt 0:00:41]} 9. h3 {[%emt 0:12:52]} Nd8 {[%emt 0:01:19]} 10. Be3 {[%emt 0:05:27]} Ne6 {[%emt 0:04:35]} 11. Kh2 {[%emt 0:01:22]} c5 {[%emt 0:15:17]} 12. Bc4 {[%emt 0:16:05]} Nc7 {[%emt 0:01:54]} 13. a4 {[%emt 0:06:58]} Bd7 {[%emt 0:03:37]} 14. Qd2 {[%emt 0:01:30]} b6 {[%emt 0:05:17]} 15. Bg5 {[%emt 0:07:20]} Be6 {[%emt 0:09:23]} 16. Nh4 {[%emt 0:05:23]} h6 {[%emt 0:00:12]} 17. Bxf6 {[%emt 0:01:18]} Qxf6 {[%emt 0:10:57]} 18. Bxe6 {[%emt 0:00:19]} fxe6 {[%emt 0:12:12]} 19. g3 {[%emt 0:04:50]} Qg5 {[%emt 0:00:30]} 20. Qe2 {[%emt 0:01:47]} Rf7 {[%emt 0:01:34]} 21. Ng2 {[%emt 0:00:20]} Raf8 {[%emt 0:01:23]} 22. h4 {[%emt 0:00:29]} Qf6 {[%emt 0:04:15]} 23. h5 {[%emt 0:04:18]} a6 {[%emt 0:07:07]} 24. Kg1 {[%emt 0:00:46]} Qg5 {[%emt 0:00:52]} 25. Nh4 {[%emt 0:04:07]} Rb8 {[%emt 0:00:11]} 26. Ng6 {[%emt 0:00:30]} Ne8 {[%emt 0:00:44]} 27. Kg2 {[%emt 0:00:56]} Nf6 {[%emt 0:02:00]} 28. Rh1 {[%emt 0:08:55]} Kh7 {[%emt 0:01:10]} 29. d4 Nxh5 {[%emt 0:00:02]} 30. Rxh5 {[%emt 0:02:08]} Qxg6 {[%emt 0:02:45]} 31. dxe5 {[%emt 0:02:01]} Rbf8 {[%emt 0:02:02]} 32. Rf1 {[%emt 0:03:01]} dxe5 {[%emt 0:07:20]} 33. a5 {[%emt 0:00:25]} Rf3 {[%emt 0:03:52]} 34. Rh4 {[%emt 0:00:50]} b5 {[%emt 0:00:12]} 35. c4 {[%emt 0:00:18]} b4 {[%emt 0:00:05]} 36. Qxf3 {[%emt 0:00:03]} Rxf3 {[%emt 0:00:25]} 37. Kxf3 {[%emt 0:00:24]} Qf6+ {[%emt 0:00:10]} 38. Ke2 {[%emt 0:00:13]} Qd8 {[%emt 0:00:07]} 39. Rd1 {[%emt 0:01:38]} Qxa5 {[%emt 0:00:19]} 40. Rd6 {[%emt 0:00:23]} Qa2 {[%emt 0:01:22]} 41. Kf3 {[%emt 0:00:34]} Qxc2 {[%emt 0:00:40]} 42. Rxe6 b3 {[%emt 0:00:18]} 43. Re7 {[%emt 0:01:03]} b2 0-1

[Event "XLV Badalona Open 2019"]
[Site "Badalona"]
[Date "2019.08.06"]
[Round "5.5"]
[White "Munoz, Miguel"]
[Black "Lorenzo De La Riva, Lazaro"]
[Result "1/2-1/2"]
[ECO "B29"]
[WhiteElo "2511"]
[BlackElo "2373"]
[Annotator "ChessBase"]
[PlyCount "65"]
[EventDate "2019.08.02"]
[EventType "swiss"]
[EventCountry "ESP"]
[SourceTitle "playchess.com"]
[Source "ChessBase"]
[SourceQuality "1"]
[TimeControl "5400+30"]

1. e4 {[%emt 0:06:50]} c5 {[%emt 0:00:00]} 2. Nf3 Nf6 {[%emt 0:00:00]} 3. e5 {[%emt 0:02:28]} Nd5 {[%emt 0:00:35]} 4. Nc3 {[%emt 0:00:00]} Nxc3 {[%emt 0:00:27]} 5. dxc3 {[%emt 0:00:19]} e6 {[%emt 0:03:52]} 6. Bd3 {[%emt 0:01:36]} Nc6 {[%emt 0:03:10]} 7. O-O {[%emt 0:00:40]} h6 {[%emt 0:01:24]} 8. Qe2 {[%emt 0:01:04]} Qc7 {[%emt 0:10:04]} 9. Bf4 {[%emt 0:01:57]} b6 {[%emt 0:03:38]} 10. Nd2 {[%emt 0:00:14]} g5 {[%emt 0:05:34]} 11. Bg3 {[%emt 0:01:15]} h5 {[%emt 0:05:05]} 12. h3 {[%emt 0:08:00]} Bb7 {[%emt 0:01:54]} 13. a3 {[%emt 0:01:47]} O-O-O {[%emt 0:07:02]} 14. Nc4 {[%emt 0:11:01]} Kb8 {[%emt 0:06:46]} 15. a4 {[%emt 0:01:41]} Be7 {[%emt 0:00:49]} 16. Rfd1 {[%emt 0:00:05]} h4 {[%emt 0:00:23]} 17. Bh2 {[%emt 0:01:03]} g4 {[%emt 0:00:16]} 18. hxg4 {[%emt 0:02:18]} h3 {[%emt 0:00:26]} 19. Be4 {[%emt 0:02:53]} hxg2 {[%emt 0:14:05]} 20. Bg3 {[%emt 0:03:07]} Ba6 {[%emt 0:06:04]} 21. Kxg2 {[%emt 0:18:22]} Bh4 {[%emt 0:05:43]} 22. Bh2 {[%emt 0:01:22]} Bxc4 {[%emt 0:00:11]} 23. Qxc4 {[%emt 0:01:40]} Bxf2 {[%emt 0:09:25]} 24. Bf4 {[%emt 0:01:21]} f5 {[%emt 0:11:39]} 25. Bxf5 {[%emt 0:17:00]} Na5 {[%emt 0:00:49]} 26. Qd3 exf5 {[%emt 0:00:05]} 27. Kxf2 {[%emt 0:01:29]} fxg4 {[%emt 0:03:06]} 28. Qd6 Qxd6 29. Rxd6 {[%emt 0:09:43]} Nc4 30. Rf6 Nxb2 31. a5 Kb7 32. a6+ Kc8 33. Rg1 1/2-1/2

[Event "XLV Badalona Open 2019"]
[Site "Badalona"]
[Date "2019.08.06"]
[Round "5.6"]
[White "Anuj Shrivatri"]
[Black "Pena Gomez, Manuel"]
[Result "1/2-1/2"]
[ECO "E62"]
[WhiteElo "2372"]
[BlackElo "2500"]
[Annotator "ChessBase"]
[PlyCount "41"]
[EventDate "2019.08.02"]
[EventType "swiss"]
[EventCountry "ESP"]
[SourceTitle "playchess.com"]
[Source "ChessBase"]
[SourceQuality "1"]
[TimeControl "5400+30"]

1. d4 {[%emt 0:00:39]} Nf6 {[%emt 0:05:36]} 2. c4 {[%emt 0:00:13]} g6 {[%emt 0:00:06]} 3. Nf3 {[%emt 0:00:04]} Bg7 4. g3 {[%emt 0:00:04]} O-O {[%emt 0:01:11]} 5. Bg2 {[%emt 0:00:06]} d6 6. O-O {[%emt 0:00:05]} Nc6 {[%emt 0:01:48]} 7. Nc3 e5 {[%emt 0:01:36]} 8. dxe5 {[%emt 0:00:35]} dxe5 {[%emt 0:01:05]} 9. Bg5 {[%emt 0:00:00]} Be6 {[%emt 0:16:55]} 10. Nd5 {[%emt 0:00:03]} Bxd5 11. Bxf6 {[%emt 0:00:08]} Qxf6 {[%emt 0:01:45]} 12. cxd5 {[%emt 0:01:54]} Ne7 {[%emt 0:10:32]} 13. e4 {[%emt 0:00:09]} c6 {[%emt 0:00:42]} 14. dxc6 {[%emt 0:00:12]} Nxc6 {[%emt 0:01:08]} 15. Qb3 {[%emt 0:00:39]} Qe7 {[%emt 0:01:36]} 16. Rfd1 {[%emt 0:03:22]} Rfd8 {[%emt 0:09:38]} 17. Bf1 {[%emt 0:07:10]} Rac8 {[%emt 0:00:50]} 18. Bh3 {[%emt 0:00:22]} Rb8 {[%emt 0:04:39]} 19. Bf1 Rbc8 20. Bh3 {[%emt 0:01:09]} Rb8 {[%emt 0:00:32]} 21. Bf1 1/2-1/2

[Event "XLV Badalona Open 2019"]
[Site "Badalona"]
[Date "2019.08.06"]
[Round "5.7"]
[White "Moskalenko, Viktor"]
[Black "Volkov, Dmitriy"]
[Result "1-0"]
[ECO "A01"]
[WhiteElo "2500"]
[BlackElo "2369"]
[Annotator "ChessBase"]
[PlyCount "113"]
[EventDate "2019.08.02"]
[EventType "swiss"]
[EventCountry "ESP"]
[SourceTitle "playchess.com"]
[Source "ChessBase"]
[SourceQuality "1"]
[TimeControl "5400+30"]

1. b3 {[%emt 0:01:23]} Nf6 {[%emt 0:00:00]} 2. Bb2 {[%emt 0:00:04]} g6 {[%emt 0:00:00]} 3. Bxf6 {[%emt 0:01:08]} exf6 {[%emt 0:00:44]} 4. c4 d5 {[%emt 0:00:03]} 5. cxd5 {[%emt 0:00:19]} Qxd5 {[%emt 0:00:24]} 6. Nc3 {[%emt 0:00:14]} Qa5 {[%emt 0:06:54]} 7. a3 {[%emt 0:12:09]} Bg7 {[%emt 0:03:32]} 8. e3 {[%emt 0:07:09]} O-O {[%emt 0:06:26]} 9. Bc4 {[%emt 0:04:48]} c5 {[%emt 0:06:08]} 10. Nge2 {[%emt 0:14:05]} Nd7 {[%emt 0:08:31]} 11. O-O {[%emt 0:14:20]} f5 {[%emt 0:11:09]} 12. Qc2 {[%emt 0:00:51]} Nb6 {[%emt 0:03:33]} 13. Bd3 {[%emt 0:01:37]} Be6 {[%emt 0:10:55]} 14. Nf4 {[%emt 0:00:11]} c4 {[%emt 0:00:28]} 15. bxc4 Bxc3 {[%emt 0:00:06]} 16. dxc3 {[%emt 0:01:00]} Bxc4 {[%emt 0:00:04]} 17. Bxc4 {[%emt 0:00:29]} Nxc4 {[%emt 0:00:17]} 18. Rfd1 {[%emt 0:03:15]} Nb6 {[%emt 0:07:51]} 19. h4 {[%emt 0:04:35]} Rac8 {[%emt 0:01:46]} 20. Rd3 {[%emt 0:06:13]} h5 {[%emt 0:03:51]} 21. Qb3 {[%emt 0:05:47]} Kg7 {[%emt 0:09:21]} 22. a4 {[%emt 0:02:57]} Rc4 {[%emt 0:00:17]} 23. Qb5 {[%emt 0:00:30]} Rc5 {[%emt 0:05:18]} 24. Qb4 Rfc8 {[%emt 0:00:04]} 25. Qd4+ {[%emt 0:00:46]} Kg8 {[%emt 0:04:09]} 26. Qf6 {[%emt 0:11:48]} R5c6 {[%emt 0:02:42]} 27. Qe7 {[%emt 0:03:04]} Rxc3 {[%emt 0:00:08]} 28. Rd8+ {[%emt 0:00:30]} Rxd8 {[%emt 0:00:40]} 29. Qxd8+ {[%emt 0:00:32]} Kg7 {[%emt 0:00:33]} 30. Qe7 {[%emt 0:00:16]} Rc6 {[%emt 0:00:30]} 31. Rd1 {[%emt 0:01:53]} Nc8 {[%emt 0:01:44]} 32. Qxb7 {[%emt 0:00:44]} Rc7 {[%emt 0:00:37]} 33. Qb3 {[%emt 0:01:17]} Nb6 {[%emt 0:00:47]} 34. Kh2 {[%emt 0:01:12]} Qc3 {[%emt 0:00:17]} 35. Qb5 {[%emt 0:00:31]} Qc5 {[%emt 0:00:06]} 36. Qb2+ {[%emt 0:00:30]} Qc3 37. Qxc3+ {[%emt 0:01:18]} Rxc3 {[%emt 0:00:29]} 38. a5 {[%emt 0:00:00]} Nc4 {[%emt 0:00:30]} 39. Rd7 {[%emt 0:00:03]} Nxa5 {[%emt 0:00:53]} 40. Ne6+ {[%emt 0:00:44]} Kg8 {[%emt 0:00:09]} 41. Rd8+ Kh7 {[%emt 0:00:20]} 42. Ng5+ {[%emt 0:00:34]} Kg7 {[%emt 0:00:43]} 43. Rd7 {[%emt 0:00:00]} Nc6 {[%emt 0:00:30]} 44. Rxf7+ {[%emt 0:00:24]} Kg8 {[%emt 0:00:02]} 45. Rc7 {[%emt 0:00:08]} a5 {[%emt 0:00:01]} 46. Rc8+ {[%emt 0:00:38]} Kg7 {[%emt 0:00:51]} 47. Ne6+ {[%emt 0:00:00]} Kf6 {[%emt 0:00:30]} 48. Nd4 {[%emt 0:00:22]} a4 {[%emt 0:00:00]} 49. Rxc6+ {[%emt 0:00:35]} Rxc6 {[%emt 0:00:29]} 50. Nxc6 {[%emt 0:00:30]} a3 {[%emt 0:00:26]} 51. Nb4 {[%emt 0:00:01]} Ke5 {[%emt 0:00:30]} 52. Kg3 {[%emt 0:02:18]} Kd6 {[%emt 0:00:00]} 53. Kf3 {[%emt 0:00:36]} Kc5 {[%emt 0:00:16]} 54. Nc2 {[%emt 0:00:17]} a2 {[%emt 0:00:06]} 55. Ke2 {[%emt 0:00:05]} Kc4 {[%emt 0:00:15]} 56. Kd2 {[%emt 0:00:00]} Kb3 {[%emt 0:00:30]} 57. f3 {[%emt 0:00:02]} 1-0

[Event "XLV Badalona Open 2019"]
[Site "Badalona"]
[Date "2019.08.06"]
[Round "5.8"]
[White "Korobitsyna, Olesya"]
[Black "Fernandez Egea, Andres"]
[Result "1-0"]
[ECO "E98"]
[WhiteElo "1609"]
[BlackElo "1838"]
[Annotator "NA"]
[PlyCount "105"]
[EventDate "2019.08.02"]
[EventType "swiss"]
[EventCountry "ESP"]
[SourceTitle "playchess.com"]
[Source "ChessBase"]
[SourceQuality "1"]
[TimeControl "5400+30"]

1. d4 {[%emt 0:00:00]} Nf6 {[%emt 0:00:00]} 2. Nf3 g6 {[%emt 0:00:05]} 3. c4 {[%emt 0:00:00]} Bg7 4. Nc3 d6 {[%emt 0:01:45]} 5. e4 {[%emt 0:00:22]} O-O {[%emt 0:00:13]} 6. Be2 e5 7. O-O {[%emt 0:00:31]} Nc6 {[%emt 0:01:27]} 8. d5 {[%emt 0:00:22]} Ne7 {[%emt 0:01:16]} 9. Ne1 {[%emt 0:00:19]} Nd7 10. Be3 {[%emt 0:00:08]} f5 {[%emt 0:00:39]} 11. f3 {[%emt 0:00:09]} f4 {[%emt 0:05:59]} 12. Bf2 {[%emt 0:02:46]} g5 {[%emt 0:09:31]} 13. b4 {[%emt 0:00:54]} h5 {[%emt 0:01:48]} 14. c5 {[%emt 0:07:19]} Rf6 {[%emt 0:00:33]} 15. Rc1 {[%emt 0:18:37]} a6 {[%emt 0:02:02]} 16. Qb3 {[%emt 0:15:42]} Kh7 {[%emt 0:00:39]} 17. cxd6 {[%emt 0:01:37]} cxd6 {[%emt 0:03:53]} 18. b5 {[%emt 0:03:14]} b6 {[%emt 0:00:55]} 19. bxa6 {[%emt 0:08:00]} Nc5 {[%emt 0:03:34]} 20. Qd1 {[%emt 0:02:03]} Bxa6 {[%emt 0:03:05]} 21. Bxa6 {[%emt 0:00:51]} Rxa6 {[%emt 0:18:46]} 22. Nd3 {[%emt 0:11:09]} Rg6 {[%emt 0:01:21]} 23. Nxc5 {[%emt 0:01:32]} bxc5 {[%emt 0:13:57]} 24. Qe2 {[%emt 0:01:12]} Qa8 {[%emt 0:04:08]} 25. Rb1 {[%emt 0:02:30]} Bf6 {[%emt 0:03:43]} 26. Rb2 {[%emt 0:02:04]} Qc8 {[%emt 0:03:15]} 27. Rfb1 {[%emt 0:01:28]} Ra8 {[%emt 0:00:48]} 28. Rb6 {[%emt 0:07:53]} Qd8 29. a4 {[%emt 0:00:45]} g4 {[%emt 0:01:12]} 30. Be1 {[%emt 0:00:21]} gxf3 {[%emt 0:02:00]} 31. Qxf3 {[%emt 0:02:31]} Kh6 {[%emt 0:03:55]} 32. R1b5 {[%emt 0:01:02]} Nc8 33. Rb8 Rxb8 {[%emt 0:00:39]} 34. Rxb8 {[%emt 0:00:37]} Qc7 {[%emt 0:00:12]} 35. Rb5 {[%emt 0:03:12]} Nb6 {[%emt 0:02:03]} 36. Qe2 {[%emt 0:00:40]} Qa7 {[%emt 0:03:26]} 37. a5 Nd7 {[%emt 0:00:15]} 38. Bf2 {[%emt 0:01:54]} Bd8 {[%emt 0:00:16]} 39. Qa2 {[%emt 0:01:02]} Nf6 {[%emt 0:04:56]} 40. a6 Rg7 41. Rb2 {[%emt 0:02:07]} Ng4 {[%emt 0:00:40]} 42. Nb5 {[%emt 0:00:14]} Qd7 {[%emt 0:06:50]} 43. a7 {[%emt 0:01:36]} Nxf2 44. Rxf2 {[%emt 0:00:14]} Qxb5 {[%emt 0:01:38]} 45. a8=Q Bh4 {[%emt 0:00:31]} 46. Rf1 {[%emt 0:01:19]} Qd3 47. Q2a3 {[%emt 0:01:14]} Qxe4 {[%emt 0:00:41]} 48. Qf3 Qd4+ {[%emt 0:00:17]} 49. Kh1 {[%emt 0:00:39]} Qc4 50. Qh8+ {[%emt 0:00:23]} Rh7 {[%emt 0:01:18]} 51. Qf8+ {[%emt 0:00:15]} Rg7 {[%emt 0:00:09]} 52. Qxd6+ {[%emt 0:00:13]} Rg6 53. Qxe5 {[%emt 0:00:31]} 1-0

[Event "XLV Badalona Open 2019"]
[Site "Badalona"]
[Date "2019.08.06"]
[Round "5.9"]
[White "Opasiak, Dustin Tennessee"]
[Black "Moncada Correa, Sara"]
[Result "1-0"]
[ECO "B20"]
[WhiteElo "1723"]
[BlackElo "1909"]
[Annotator "NA"]
[PlyCount "95"]
[EventDate "2019.08.02"]
[EventType "swiss"]
[EventCountry "ESP"]
[SourceTitle "playchess.com"]
[Source "ChessBase"]
[SourceQuality "1"]
[TimeControl "5400+30"]

1. e4 {[%emt 0:00:00]} c5 {[%emt 0:01:14]} 2. Ne2 {[%emt 0:00:00]} e6 {[%emt 0:00:27]} 3. Nbc3 {[%emt 0:00:50]} Nc6 {[%emt 0:00:36]} 4. g3 {[%emt 0:00:23]} d5 {[%emt 0:00:18]} 5. exd5 {[%emt 0:01:44]} exd5 {[%emt 0:02:07]} 6. Bg2 {[%emt 0:01:15]} d4 {[%emt 0:02:11]} 7. Nd5 {[%emt 0:00:52]} Bd6 {[%emt 0:00:53]} 8. d3 {[%emt 0:03:30]} Nge7 {[%emt 0:03:12]} 9. Nef4 {[%emt 0:00:12]} O-O {[%emt 0:03:35]} 10. O-O {[%emt 0:00:13]} Nxd5 {[%emt 0:01:13]} 11. Nxd5 {[%emt 0:14:38]} Bf5 {[%emt 0:04:10]} 12. Qh5 {[%emt 0:13:54]} Qd7 {[%emt 0:05:45]} 13. h3 {[%emt 0:03:40]} Rfe8 14. Bf4 {[%emt 0:00:09]} Bxf4 {[%emt 0:01:51]} 15. Nxf4 {[%emt 0:07:05]} Re5 {[%emt 0:11:08]} 16. Rae1 {[%emt 0:04:37]} Rae8 {[%emt 0:05:56]} 17. Qd1 {[%emt 0:04:10]} h6 {[%emt 0:00:33]} 18. g4 {[%emt 0:01:49]} Bh7 {[%emt 0:00:43]} 19. Rxe5 {[%emt 0:01:37]} Nxe5 {[%emt 0:02:12]} 20. Re1 {[%emt 0:05:55]} b6 {[%emt 0:03:24]} 21. Kf1 {[%emt 0:02:22]} Kf8 {[%emt 0:00:23]} 22. Be4 {[%emt 0:00:30]} Bxe4 {[%emt 0:04:26]} 23. Rxe4 {[%emt 0:01:22]} Qc6 {[%emt 0:02:32]} 24. Qe2 {[%emt 0:02:24]} f6 {[%emt 0:02:31]} 25. Nh5 {[%emt 0:02:37]} Rd8 {[%emt 0:00:20]} 26. f4 {[%emt 0:02:14]} Nf7 {[%emt 0:03:31]} 27. Ng3 {[%emt 0:02:41]} Qc7 {[%emt 0:00:44]} 28. Kf2 {[%emt 0:01:40]} Nd6 {[%emt 0:01:40]} 29. Re6 {[%emt 0:04:39]} Kf7 {[%emt 0:01:45]} 30. f5 {[%emt 0:02:43]} Kf8 {[%emt 0:01:09]} 31. h4 {[%emt 0:01:04]} Nf7 {[%emt 0:02:08]} 32. Qe4 {[%emt 0:02:28]} Rc8 {[%emt 0:02:33]} 33. Kg2 {[%emt 0:02:28]} c4 {[%emt 0:00:19]} 34. Nh5 {[%emt 0:00:44]} cxd3 {[%emt 0:00:14]} 35. cxd3 {[%emt 0:02:28]} Qc2+ {[%emt 0:01:34]} 36. Qe2 {[%emt 0:02:18]} Ne5 {[%emt 0:01:03]} 37. Nf4 {[%emt 0:00:07]} Qxe2+ {[%emt 0:00:52]} 38. Nxe2 {[%emt 0:00:06]} Rc2 {[%emt 0:00:50]} 39. Kf1 {[%emt 0:01:31]} Nxd3 {[%emt 0:01:15]} 40. Rd6 {[%emt 0:00:51]} Rxb2 {[%emt 0:01:21]} 41. Rxd4 {[%emt 0:00:32]} Nc5 {[%emt 0:02:55]} 42. Nf4 {[%emt 0:01:39]} Rxa2 {[%emt 0:00:24]} 43. Rd8+ Ke7 {[%emt 0:00:16]} 44. Rg8 {[%emt 0:01:05]} Kf7 {[%emt 0:02:44]} 45. Rd8 {[%emt 0:01:16]} Ra4 {[%emt 0:08:36]} 46. Ng6 {[%emt 0:00:26]} Nd7 {[%emt 0:00:07]} 47. Rxd7+ {[%emt 0:00:30]} Kg8 {[%emt 0:00:45]} 48. Rd8+ 1-0

[Event "XLV Badalona Open 2019"]
[Site "Badalona"]
[Date "2019.08.06"]
[Round "5.10"]
[White "Bru Rullo, Samuel"]
[Black "Romeu Perulles, Jaume"]
[Result "1-0"]
[ECO "A99"]
[WhiteElo "1867"]
[BlackElo "1813"]
[Annotator "NA"]
[PlyCount "59"]
[EventDate "2019.08.02"]
[EventType "swiss"]
[EventCountry "ESP"]
[SourceTitle "playchess.com"]
[Source "ChessBase"]
[SourceQuality "1"]
[TimeControl "5400+30"]

1. d4 f5 2. g3 e6 3. Bg2 Nf6 4. Nf3 d6 5. c4 Be7 6. Nc3 O-O 7. O-O Qe8 8. b3 Qh5 9. Ba3 c6 10. Qc2 Re8 11. Bb2 Nbd7 12. Rad1 e5 13. dxe5 dxe5 14. Nh4 g6 15. Bc1 e4 16. f3 Bc5+ 17. Kh1 e3 18. f4 Nb6 19. Bf3 Qh6 20. Rd3 Ne4 21. Bxe4 fxe4 22. Nxe4 Be7 23. Ng5 Bxg5 24. fxg5 Qxg5 25. Qc3 Qe5 26. Qxe5 Rxe5 27. Rd8+ Kg7 28. Bb2 Kh6 29. Bxe5 Bh3 30. Rff8 1-0

[Event "XLV Badalona Open 2019"]
[Site "Badalona"]
[Date "2019.08.07"]
[Round "6.1"]
[White "Umetsubo, Cesar Hidemitsu"]
[Black "Sturt, Raven"]
[Result "1-0"]
[ECO "C04"]
[WhiteElo "2406"]
[BlackElo "2429"]
[Annotator "ChessBase"]
[PlyCount "133"]
[EventDate "2019.08.02"]
[EventType "swiss"]
[EventCountry "ESP"]
[SourceTitle "playchess.com"]
[Source "ChessBase"]
[SourceQuality "1"]
[TimeControl "5400+30"]

1. e4 {[%emt 0:00:00]} e6 {[%emt 0:02:24]} 2. d4 {[%emt 0:00:00]} d5 {[%emt 0:00:04]} 3. Nd2 {[%emt 0:00:23]} Nc6 4. Ngf3 {[%emt 0:07:32]} Nf6 {[%emt 0:00:08]} 5. e5 {[%emt 0:01:44]} Nd7 {[%emt 0:00:04]} 6. Bd3 {[%emt 0:03:04]} f6 {[%emt 0:00:04]} 7. exf6 {[%emt 0:07:54]} Qxf6 {[%emt 0:01:47]} 8. O-O {[%emt 0:09:22]} Bd6 {[%emt 0:05:35]} 9. Nb3 {[%emt 0:12:38]} h6 10. c3 {[%emt 0:00:24]} O-O {[%emt 0:05:49]} 11. Bc2 {[%emt 0:01:10]} Rf7 {[%emt 0:06:36]} 12. Qd3 {[%emt 0:14:29]} g5 {[%emt 0:16:19]} 13. Be3 {[%emt 0:02:49]} Ne7 {[%emt 0:08:46]} 14. Rae1 {[%emt 0:00:47]} g4 {[%emt 0:00:11]} 15. Nfd2 {[%emt 0:01:13]} e5 {[%emt 0:10:30]} 16. f3 {[%emt 0:07:13]} Qh4 {[%emt 0:00:51]} 17. g3 {[%emt 0:03:46]} Qh3 {[%emt 0:01:04]} 18. fxg4 {[%emt 0:06:28]} Rg7 {[%emt 0:04:48]} 19. Rf2 {[%emt 0:03:20]} Qxg4 20. Bxh6 {[%emt 0:00:14]} Rg6 {[%emt 0:01:19]} 21. Qe3 {[%emt 0:02:09]} e4 {[%emt 0:09:11]} 22. Nxe4 dxe4 {[%emt 0:00:30]} 23. Bxe4 Nf6 {[%emt 0:00:05]} 24. Bxg6 {[%emt 0:01:22]} Qxg6 25. Rxf6 {[%emt 0:01:58]} Qxf6 {[%emt 0:01:11]} 26. Bg5 Qg6 {[%emt 0:01:29]} 27. Bxe7 {[%emt 0:00:58]} Bxe7 {[%emt 0:00:07]} 28. Qxe7 {[%emt 0:01:36]} Bh3 {[%emt 0:01:34]} 29. Qe4 {[%emt 0:00:56]} Qf7 30. Qe7 Qd5 {[%emt 0:03:43]} 31. Qe4 {[%emt 0:00:48]} Qf7 {[%emt 0:00:00]} 32. Nd2 {[%emt 0:00:29]} Rf8 {[%emt 0:03:05]} 33. Qe2 Qxa2 34. Qc4+ {[%emt 0:01:18]} Qxc4 {[%emt 0:00:34]} 35. Nxc4 {[%emt 0:00:00]} b5 {[%emt 0:03:48]} 36. Ne5 b4 {[%emt 0:02:29]} 37. cxb4 {[%emt 0:02:18]} Rb8 {[%emt 0:01:28]} 38. Nc6 {[%emt 0:01:03]} Rb6 {[%emt 0:01:27]} 39. d5 {[%emt 0:03:34]} Rb5 {[%emt 0:02:39]} 40. Ra1 Kf7 {[%emt 0:00:01]} 41. Ra5 {[%emt 0:00:43]} Rb6 {[%emt 0:00:02]} 42. Rxa7 {[%emt 0:00:18]} Kf6 43. Kf2 {[%emt 0:01:01]} Rb5 {[%emt 0:00:46]} 44. Ra5 {[%emt 0:00:13]} Rb6 {[%emt 0:00:00]} 45. Ke3 {[%emt 0:01:36]} Bd7 {[%emt 0:00:00]} 46. Rc5 {[%emt 0:01:27]} Bh3 {[%emt 0:00:28]} 47. b5 Kf7 {[%emt 0:00:06]} 48. Kd4 {[%emt 0:01:09]} Ke8 {[%emt 0:00:13]} 49. Ke5 {[%emt 0:00:53]} Kd7 {[%emt 0:00:35]} 50. b3 {[%emt 0:01:27]} Bf1 51. Nd4 {[%emt 0:00:17]} Rh6 {[%emt 0:00:45]} 52. h4 {[%emt 0:00:26]} Rh5+ {[%emt 0:00:06]} 53. Kf4 Kd6 {[%emt 0:00:10]} 54. b4 {[%emt 0:00:40]} Bd3 55. Rc6+ {[%emt 0:00:52]} Kd7 {[%emt 0:00:31]} 56. Ne6 Bxb5 {[%emt 0:00:26]} 57. Rxc7+ {[%emt 0:00:29]} Kd6 {[%emt 0:02:08]} 58. Rc5 Be8 {[%emt 0:00:12]} 59. Ng7 {[%emt 0:00:41]} Rh8 {[%emt 0:00:05]} 60. Nxe8+ {[%emt 0:01:04]} Rxe8 {[%emt 0:00:07]} 61. Rb5 {[%emt 0:00:19]} Rf8+ {[%emt 0:00:02]} 62. Kg4 {[%emt 0:00:21]} Rg8+ {[%emt 0:00:04]} 63. Kh3 {[%emt 0:00:20]} Ke5 64. h5 {[%emt 0:00:15]} Ke4 {[%emt 0:00:42]} 65. d6 Rd8 {[%emt 0:00:19]} 66. h6 {[%emt 0:00:40]} Rxd6 {[%emt 0:00:21]} 67. Rh5 1-0